bitfinex/quotes_SOLUSD_20250829
["timestamp","ask_amount","ask_price","bid_price","bid_amount"]
[1756495891088,35.64224084,204.51,204.5,0.03]
[1756495891979,70.78901926,204.54,204.5,0.03]
[1756495892291,14.53197728,204.51,204.5,0.03]
[1756495893093,14.53197728,204.51,204.48,0.03]
[1756495893094,32.88007569,204.49,204.48,0.03]
[1756495893279,32.88007569,204.49,204.46,0.03]
[1756495893280,26.0,204.47,204.46,0.03]
[1756495893597,35.64224084,204.47,204.44,0.2]
[1756495893781,35.64224084,204.45,204.44,0.2]
[1756495893980,75.62224084,204.45,204.44,0.2]
[1756495894189,75.62224084,204.45,204.43,0.03]
[1756495894390,26.0,204.42,204.41,0.03]
[1756495894591,75.62224084,204.42,204.37,0.7]
[1756495894780,9.64224084,204.38,204.37,0.7]
[1756495894977,26.0,204.4,204.38,0.7]
[1756495895303,9.64224084,204.39,204.33,4.92389357]
[1756495895602,30.89141068,204.44,204.34,13.59559401]
[1756495895905,9.64224084,204.36,204.35,14.29559401]
[1756495896579,9.64224084,204.36,204.35,0.7]
[1756495898203,26.0,204.44,204.35,0.7]
[1756495898390,12.22720634,204.47,204.35,0.7]
[1756495898391,9.64224084,204.36,204.35,0.7]
[1756495898791,9.64224084,204.37,204.35,5.59351039]
[1756495899107,26.0,204.4,204.36,0.7]
[1756495899286,26.0,204.4,204.37,0.7]
[1756495899481,26.0,204.4,204.38,0.7]
[1756495899681,26.0,204.4,204.33,13.62559401]
[1756495899682,30.89164995,204.43,204.39,0.7]
[1756495900089,30.89164995,204.43,204.36,0.7]
[1756495900285,9.64224084,204.37,204.36,0.7]
[1756495900685,9.64224084,204.37,204.33,0.73]
[1756495900912,4.89286245,204.38,204.34,0.7]
[1756495901291,4.89286245,204.38,204.33,0.03]
[1756495901498,26.0,204.4,204.34,0.7]
[1756495901891,26.0,204.4,204.35,0.03]
[1756495902104,9.64224084,204.36,204.35,0.73]
[1756495902612,9.64224084,204.37,204.35,5.62351955]
[1756495902793,9.64224084,204.37,204.36,0.7]
[1756495904120,12.22533887,204.5,204.37,13.59559401]
[1756495904413,9.64224084,204.41,204.38,0.7]
[1756495904616,9.64224084,204.4,204.37,18.48846923]
[1756495904820,26.0,204.42,204.39,0.7]
[1756495904999,9.64224084,204.41,204.39,0.7]
[1756495905322,9.64224084,204.4,204.36,13.59559401]
[1756495905515,26.0,204.43,204.39,0.7]
[1756495906022,26.0,204.43,204.36,0.7]
[1756495906500,4.89188924,204.42,204.36,0.7]
[1756495906700,9.64224084,204.38,204.36,0.7]
[1756495907026,9.64224084,204.38,204.37,0.7]
[1756495909941,9.64224084,204.39,204.36,0.7]
[1756495910123,9.64224084,204.39,204.35,13.62559401]
[1756495910436,9.64224084,204.39,204.36,0.7]
[1756495910638,9.64224084,204.39,204.37,0.7]
[1756495910940,9.64224084,204.4,204.38,0.7]
[1756495911237,9.64224084,204.4,204.39,0.7]
[1756495911436,35.64224084,204.41,204.39,0.7]
[1756495911731,9.64224084,204.43,204.4,0.7]
[1756495912035,9.64224084,204.45,204.4,10.34224084]
[1756495912329,26.0,204.42,204.41,0.7]
[1756495913230,35.64224084,204.42,204.38,0.7]
[1756495913426,9.64224084,204.4,204.39,0.7]
[1756495913628,9.64224084,204.4,204.37,0.7]
[1756495913813,9.64224084,204.38,204.37,0.7]
[1756495914012,70.73141068,204.44,204.37,0.7]
[1756495914238,9.64224084,204.39,204.37,0.7]
[1756495914823,44.73141068,204.44,204.36,4.89331268]
[1756495915138,9.64224084,204.4,204.38,0.7]
[1756495915435,9.64224084,204.39,204.38,0.7]
[1756495915925,9.64224084,204.4,204.38,0.7]
[1756495916129,9.64224084,204.39,204.38,0.7]
[1756495916525,35.64224084,204.4,204.38,0.7]
[1756495918636,26.0,204.36,204.35,0.03]
[1756495918837,9.64224084,204.36,204.35,0.03]
[1756495920517,9.64224084,204.36,204.35,0.73]
[1756495920718,35.64224084,204.36,204.35,0.73]
[1756495921543,35.64224084,204.36,204.35,0.03]
[1756495921726,14.53556634,204.36,204.35,0.03]
[1756495922458,9.64224084,204.36,204.35,0.03]
[1756495922618,26.0,204.38,204.35,0.03]
[1756495922824,9.64224084,204.36,204.35,0.03]
[1756495924048,19.28448168,204.36,204.35,0.03]
[1756495924370,26.0,204.38,204.35,0.7]
[1756495924585,9.64224084,204.36,204.35,0.7]
[1756495924748,9.64224084,204.36,204.35,0.03]
[1756495926247,9.64224084,204.36,204.35,5.59356496]
[1756495926458,9.64224084,204.39,204.36,13.59559401]
[1756495926764,4.12193041,204.43,204.37,0.67]
[1756495926765,26.0,204.4,204.37,0.67]
[1756495926963,9.64224084,204.38,204.35,0.03]
[1756495927166,9.64224084,204.38,204.36,13.59559401]
[1756495927552,9.64224084,204.38,204.37,0.67]
[1756495928351,9.64224084,204.42,204.38,13.59559401]
[1756495928666,14.53486365,204.39,204.35,0.03]
[1756495928863,19.28448168,204.36,204.35,0.03]
[1756495930374,26.0,204.34,204.33,0.03]
[1756495930690,40.53604528,204.34,204.33,0.03]
[1756495931344,35.64224084,204.34,204.33,0.03]
[1756495931746,40.53604528,204.34,204.33,0.03]
[1756495931955,40.53604528,204.34,204.32,0.2]
[1756495932162,35.64224084,204.33,204.32,0.2]
[1756495932771,40.53628478,204.33,204.3,0.03]
[1756495933094,9.64224084,204.31,204.3,0.03]
[1756495933298,9.64224084,204.31,204.3,0.7]
[1756495933459,9.64224084,204.31,204.3,0.03]
[1756495934178,4.8923679,204.4,204.3,19.19035661]
[1756495934480,9.64224084,204.32,204.31,14.26559401]
[1756495934663,26.0,204.33,204.31,0.67]
[1756495934864,9.64224084,204.32,204.31,0.67]
[1756495935066,9.64224084,204.32,204.3,0.03]
[1756495935284,9.64224084,204.31,204.3,0.03]
[1756495935661,26.0,204.37,204.3,0.03]
[1756495935863,9.64224084,204.31,204.3,0.03]
[1756495936857,14.53676386,204.31,204.3,0.03]
[1756495937362,26.0,204.28,204.25,0.1]
[1756495937578,18.5963563,204.31,204.25,0.1]
[1756495937579,9.64224084,204.26,204.25,0.1]
[1756495937789,19.28448168,204.26,204.25,0.1]
[1756495939268,24.18020281,204.26,204.25,0.1]
[1756495939466,24.18020281,204.26,204.17,0.1]
[1756495939672,9.64224084,204.21,204.17,0.1]
[1756495941586,14.53916067,204.21,204.17,0.1]
[1756495942373,9.64224084,204.21,204.17,0.1]
[1756495942692,35.64224084,204.21,204.2,0.87]
[1756495943674,35.64224084,204.21,204.2,0.2]
[1756495943900,40.53916067,204.21,204.2,0.2]
[1756495944571,39.78,204.27,204.2,0.87]
[1756495944572,26.0,204.27,204.2,0.87]
[1756495944771,9.64224084,204.21,204.2,0.87]
[1756495944973,35.64224084,204.21,204.2,0.87]
[1756495945388,9.64224084,204.21,204.2,0.87]
[1756495946480,35.64224084,204.21,204.2,0.87]
[1756495949300,35.64224084,204.21,204.2,0.2]
[1756495949998,26.0,204.18,204.17,0.1]
[1756495950176,35.64224084,204.18,204.17,0.1]
[1756495950514,40.53988017,204.18,204.17,0.1]
[1756495950807,40.53988017,204.18,204.12,0.1]
[1756495951005,9.64224084,204.14,204.12,0.1]
[1756495951180,13.60071451,204.14,204.12,0.1]
[1756495951702,13.60071451,204.14,204.06,39.72]
[1756495951703,26.0,204.11,204.06,39.72]
[1756495951870,9.64224084,204.08,204.06,39.72]
[1756495952381,39.72,204.19,203.97,13.05584894]
[1756495952382,1.963817,204.31,204.1,26.0]
[1756495952695,9.64224084,204.2,204.14,17.1450965]
[1756495952896,9.64224084,204.2,204.14,26.78733734]
[1756495953105,9.64224084,204.26,204.15,6.90394014]
[1756495953274,9.64224084,204.36,204.19,9.64224084]
[1756495953275,9.64224084,204.24,204.19,9.64224084]
[1756495953475,66.12,204.28,204.2,14.29559401]
[1756495953671,9.64224084,204.24,204.22,13.59559401]
[1756495953904,9.64224084,204.25,204.23,0.7]
[1756495954399,9.64224084,204.24,204.15,6.90394014]
[1756495954581,9.64224084,204.2,204.17,13.59559401]
[1756495954780,9.64224084,204.18,204.17,0.7]
[1756495955400,0.06,204.18,204.17,0.7]
[1756495955605,0.68,204.26,204.17,0.7]
[1756495955606,4.89356496,204.35,204.17,0.7]
[1756495955788,0.06,204.41,204.34,13.59559401]
[1756495955986,0.06,204.41,204.33,9.64224084]
[1756495955987,0.06,204.41,204.36,23.23783485]
[1756495956185,0.06,204.41,204.39,13.59559401]
[1756495956486,0.06,204.41,204.4,19.18796191]
[1756495956690,0.06,204.41,204.4,0.7]
[1756495956885,9.70224084,204.41,204.38,13.59559401]
[1756495957086,0.06,204.41,204.39,0.7]
[1756495957295,0.06,204.41,204.4,0.7]
[1756495957887,0.06,204.41,204.4,5.5923679]
[1756495959692,0.06,204.41,204.38,4.89264101]
[1756495959894,9.64224084,204.39,204.36,4.89327609]
[1756495960092,9.64224084,204.37,204.36,4.89327609]
[1756495960389,0.06,204.41,204.36,5.59327609]
[1756495960390,9.64224084,204.38,204.36,5.59327609]
[1756495960583,9.64224084,204.39,204.36,5.59327609]
[1756495961910,9.64224084,204.38,204.36,5.59327609]
[1756495962108,0.06,204.41,204.36,5.59327609]
[1756495962109,0.06,204.41,204.37,23.93783485]
[1756495962313,0.06,204.41,204.38,9.64224084]
[1756495962496,9.70224084,204.41,204.38,0.7]
[1756495962696,9.70224084,204.41,204.39,0.7]
[1756495964322,9.70224084,204.41,204.4,4.8923679]
[1756495965697,0.06,204.41,204.4,4.8923679]
[1756495966409,0.06,204.41,204.34,4.89369855]
[1756495966410,50.56224084,204.41,204.34,4.89369855]
[1756495966611,9.64224084,204.35,204.28,0.7]
[1756495966797,45.13214473,204.41,204.28,0.7]
[1756495966798,9.64224084,204.32,204.28,0.7]
[1756495966997,9.64224084,204.32,204.3,13.59559401]
[1756495967213,9.64224084,204.32,204.3,14.29559401]
[1756495967414,9.64224084,204.32,204.3,19.19030033]
[1756495967987,9.64224084,204.32,204.3,18.49030033]
[1756495968232,9.64224084,204.33,204.3,18.49030033]
[1756495968392,9.64224084,204.33,204.31,0.7]
[1756495969224,9.64224084,204.32,204.31,0.7]
[1756495969544,9.64224084,204.32,204.28,4.89502379]
[1756495969721,9.64224084,204.29,204.28,4.89502379]
[1756495971843,9.64224084,204.29,204.26,18.49131514]
[1756495972042,9.64224084,204.29,204.27,0.7]
[1756495972244,9.64224084,204.28,204.22,5.59668005]
[1756495972547,9.64224084,204.23,204.22,4.89668005]
[1756495973838,9.64224084,204.23,204.2,4.89715964]
[1756495974021,9.64224084,204.21,204.2,4.89715964]
[1756495974221,0.68,204.28,204.2,5.59715964]
[1756495974538,9.64224084,204.21,204.2,5.59715964]
[1756495974851,9.64224084,204.21,204.17,0.7]
[1756495975049,9.64224084,204.18,204.17,0.7]
[1756495975722,9.64224084,204.18,204.13,12.24668054]
[1756495975723,9.64224084,204.18,204.16,13.59559401]
[1756495976044,9.64224084,204.18,204.17,4.89787921]
[1756495977829,9.64224084,204.18,204.16,14.29559401]
[1756495978029,26.0,204.22,204.16,14.29559401]
[1756495978030,9.64224084,204.17,204.16,13.59559401]
[1756495978256,9.64224084,204.17,204.12,13.59559401]
[1756495978455,26.0,204.19,204.13,5.59873615]
[1756495978764,9.64224084,204.14,204.13,19.19433016]
[1756495979120,9.64224084,204.15,204.13,19.19433016]
[1756495979353,26.0,204.19,204.14,0.7]
[1756495979354,9.64224084,204.16,204.14,0.7]
[1756495979758,9.64224084,204.16,204.13,18.49433016]
[1756495979940,9.64224084,204.16,204.14,0.7]
[1756495980437,9.64224084,204.15,204.13,18.49428489]
[1756495980642,9.64224084,204.14,204.11,13.59559401]
[1756495980826,9.64224084,204.13,204.11,14.27559401]
[1756495981029,26.0,204.17,204.11,18.49488675]
[1756495981230,9.64224084,204.16,204.12,0.68]
[1756495981457,9.64224084,204.17,204.13,0.68]
[1756495981837,26.0,204.19,204.14,0.68]
[1756495982036,26.0,204.21,204.14,0.68]
[1756495982232,9.64224084,204.16,204.14,0.68]
[1756495982449,26.0,204.19,204.14,5.57859798]
[1756495982633,9.64224084,204.17,204.14,4.89859798]
[1756495982832,9.64224084,204.17,204.14,5.57859798]
[1756495983457,9.64224084,204.16,204.14,5.57859798]
[1756495983844,9.64224084,204.15,204.12,4.89907897]
[1756495984142,9.64224084,204.14,204.12,5.57907897]
[1756495984450,9.64224084,204.15,204.12,5.57907897]
[1756495984648,9.64224084,204.13,204.12,4.89907897]
[1756495984853,9.64224084,204.13,204.11,18.49486928]
[1756495985161,9.64224084,204.12,204.08,13.62559401]
[1756495985340,0.69,204.15,204.09,4.8997991]
[1756495985341,9.64224084,204.11,204.09,4.8997991]
[1756495985532,9.64224084,204.1,204.08,0.03]
[1756495985732,9.64224084,204.09,204.08,0.03]
[1756495986746,26.69,204.12,204.08,0.03]
[1756495986939,9.64224084,204.09,204.08,0.03]
[1756495990668,10.33224084,204.09,204.08,0.03]
[1756495992268,36.33224084,204.09,204.08,0.03]
[1756495992446,36.33224084,204.09,204.06,0.03]
[1756495992447,15.23203994,204.09,204.06,0.03]
[1756495992643,26.0,204.07,204.06,0.03]
[1756495992847,35.64224084,204.07,204.06,0.03]
[1756495993172,36.33224084,204.07,204.06,0.03]
[1756495993366,41.23252015,204.07,204.06,0.03]
[1756495993873,9.64224084,204.07,204.06,0.03]
[1756495994642,9.64224084,204.07,204.06,5.61051945]
[1756495994846,9.64224084,204.07,204.06,4.93051945]
[1756495996345,26.0,204.1,204.06,4.93051945]
[1756495996565,9.64224084,204.07,204.06,5.61051945]
[1756495996769,9.64224084,204.07,204.06,0.03]
[1756495999153,10.33224084,204.07,204.06,0.03]
[1756495999672,9.64224084,204.07,204.06,0.03]
[1756496000857,35.64224084,204.07,204.06,0.03]
[1756496001057,26.0,204.07,204.06,0.03]
[1756496001255,35.64224084,204.07,204.06,0.71]
[1756496001581,35.64224084,204.07,204.06,0.03]
[1756496004056,36.33224084,204.07,204.06,0.03]
[1756496004255,0.69,204.07,204.06,0.03]
[1756496004472,10.33224084,204.07,204.06,0.03]
[1756496004671,35.64224084,204.07,204.06,0.03]
[1756496004874,9.64224084,204.07,204.06,0.03]
[1756496005074,35.64224084,204.07,204.06,0.03]
[1756496011289,39.27543239,204.07,204.06,0.03]
[1756496012090,3.63319155,204.07,204.06,14.31559401]
[1756496012285,0.68,204.17,204.06,23.95783485]
[1756496012464,9.64224084,204.13,204.07,23.92783485]
[1756496012664,3.63517633,204.12,204.08,0.69]
[1756496012864,3.63518868,204.11,204.1,13.59559401]
[1756496013161,0.06,204.18,204.1,13.59559401]
[1756496013162,9.70224084,204.18,204.1,23.92783485]
[1756496013392,3.637561,204.17,204.15,13.59559401]
[1756496013698,13.27980184,204.16,204.15,0.69]
[1756496014259,3.637561,204.16,204.15,0.69]
[1756496014697,13.27980184,204.16,204.15,0.69]
[1756496015102,3.637561,204.16,204.15,0.69]
[1756496015282,13.27980184,204.16,204.15,0.69]
[1756496015482,13.27980184,204.16,204.14,13.59559401]
[1756496015781,13.28570912,204.15,204.14,14.28559401]
[1756496016087,13.28570912,204.15,204.1,4.89955903]
[1756496016396,13.28570912,204.14,204.11,13.59559401]
[1756496016574,3.64346828,204.13,204.12,14.28559401]
[1756496016773,3.64346828,204.13,204.12,0.69]
[1756496017595,3.64346828,204.13,204.12,5.58907897]
[1756496018506,3.64346828,204.13,204.12,19.18467298]
[1756496018999,3.64346828,204.13,204.12,28.82691382]
[1756496019209,9.70224084,204.18,204.13,13.59559401]
[1756496019511,13.29561477,204.17,204.15,4.89835904]
[1756496019684,13.29561477,204.16,204.15,4.89835904]
[1756496019887,13.29561477,204.16,204.14,4.89854936]
[1756496020088,9.64224084,204.16,204.14,4.89854936]
[1756496020299,9.64224084,204.16,204.14,5.58854936]
[1756496021504,9.64224084,204.15,204.14,4.89854936]
[1756496021717,9.64224084,204.15,204.11,13.59559401]
[1756496022012,9.64224084,204.13,204.11,14.28559401]
[1756496022508,9.64224084,204.13,204.11,13.59559401]
[1756496022896,9.64224084,204.13,204.11,14.28559401]
[1756496023296,9.64224084,204.12,204.09,13.59559401]
[1756496023609,9.64224084,204.12,204.1,0.69]
[1756496024504,9.64224084,204.12,204.1,5.58939571]
[1756496024682,9.64224084,204.12,204.1,4.89939571]
[1756496024883,9.64224084,204.12,204.1,5.58939571]
[1756496027290,9.64224084,204.13,204.1,5.58939571]
[1756496027518,9.64224084,204.12,204.1,5.58939571]
[1756496027699,9.64224084,204.11,204.08,18.49541107]
[1756496028020,9.64224084,204.1,204.08,18.49541107]
[1756496028714,0.06,204.12,204.06,0.03]
[1756496028715,9.64224084,204.09,204.06,0.03]
[1756496028884,9.64224084,204.08,204.06,0.03]
[1756496029390,9.64224084,204.07,204.06,0.03]
[1756496030081,10.32224084,204.07,204.06,0.03]
[1756496030888,15.22252015,204.07,204.06,0.03]
[1756496032804,54.98252015,204.07,204.06,0.03]
[1756496033206,54.98252015,204.07,204.05,0.03]
[1756496033404,35.64224084,204.05,204.04,0.1]
[1756496033896,36.32224084,204.05,204.04,0.1]
[1756496035020,41.22300045,204.05,204.04,0.1]
[1756496035388,80.98300045,204.05,204.04,0.1]
[1756496036518,41.22300045,204.05,204.04,0.1]
[1756496036693,80.98300045,204.05,204.04,0.1]
[1756496037451,102.87714033,204.05,203.92,27.58]
[1756496037610,26.0,203.97,203.93,14.28559401]
[1756496037818,9.64224084,203.94,203.93,14.28559401]
[1756496038839,9.64224084,203.94,203.93,19.18923741]
[1756496039213,26.0,203.96,203.93,19.18923741]
[1756496039430,9.64224084,203.94,203.93,18.49923741]
[1756496039916,9.64224084,203.94,203.93,19.18923741]
[1756496041439,9.64224084,203.94,203.93,0.72]
[1756496041946,9.64224084,203.94,203.91,13.59559401]
[1756496042143,9.64224084,203.92,203.89,0.72]
[1756496042438,9.64224084,203.92,203.9,0.72]
[1756496042640,9.64224084,203.92,203.89,13.59559401]
[1756496042942,9.64224084,203.92,203.91,4.90412436]
[1756496043243,9.64224084,203.92,203.91,5.62412436]
[1756496043735,26.0,203.96,203.91,5.62412436]
[1756496043919,35.64224084,203.95,203.92,0.72]
[1756496044121,35.64224084,203.95,203.93,0.72]
[1756496044430,9.64224084,203.99,203.94,13.59559401]
[1756496044633,9.64224084,203.98,203.95,0.72]
[1756496044830,9.64224084,203.98,203.96,0.72]
[1756496045029,9.64224084,203.97,203.96,5.62291829]
[1756496045643,26.0,203.99,203.96,5.62291829]
[1756496045838,9.64224084,203.97,203.96,5.62291829]
[1756496049842,9.64224084,203.98,203.96,5.62291829]
[1756496050948,9.64224084,204.02,203.97,14.31559401]
[1756496051117,9.64224084,203.98,203.97,14.31559401]
[1756496051315,9.64224084,203.98,203.96,4.90291829]
[1756496051518,9.64224084,203.97,203.96,13.59559401]
[1756496051915,0.71,204.0,203.95,4.90313358]
[1756496052241,9.64224084,203.96,203.95,18.49872759]
[1756496052430,9.64224084,203.96,203.95,19.21872759]
[1756496052629,9.64224084,203.97,203.95,19.21872759]
[1756496053027,9.64224084,203.97,203.95,18.49872759]
[1756496053349,9.64224084,203.96,203.95,13.59559401]
[1756496053643,9.64224084,203.96,203.93,13.62559401]
[1756496053828,9.64224084,203.94,203.93,19.24916538]
[1756496054229,9.64224084,203.95,203.93,19.24916538]
[1756496054428,9.64224084,203.95,203.94,14.31559401]
[1756496054753,9.64224084,203.95,203.93,0.03]
[1756496054952,9.64224084,203.94,203.93,4.9336434]
[1756496055248,9.64224084,203.94,203.93,5.6536434]
[1756496055431,6.07030033,203.94,203.93,5.6536434]
[1756496057453,26.0,203.97,203.93,5.6536434]
[1756496057635,6.07030033,203.94,203.93,5.6536434]
[1756496059329,26.0,203.97,203.93,5.6536434]
[1756496059538,6.07030033,203.94,203.93,5.6536434]
[1756496060450,6.07030033,203.97,203.94,13.59559401]
[1756496060753,6.07030033,203.95,203.93,0.03]
[1756496060932,26.0,203.98,203.93,0.03]
[1756496060933,6.07030033,203.94,203.93,0.03]
[1756496061437,0.71,203.97,203.93,0.03]
[1756496061633,6.07030033,203.94,203.93,4.93356331]
[1756496062052,6.07030033,203.94,203.93,0.03]
[1756496062847,6.78030033,203.94,203.93,0.03]
[1756496063252,6.07030033,203.94,203.93,0.03]
[1756496065255,26.0,203.97,203.93,0.75]
[1756496065433,6.07030033,203.94,203.93,0.03]
[1756496067959,6.78030033,203.94,203.93,0.03]
[1756496068146,11.68370329,203.94,203.93,0.03]
[1756496068460,11.68370329,203.94,203.9,0.03]
[1756496068461,30.01251102,203.94,203.9,0.03]
[1756496068634,30.01251102,203.94,203.82,4.83259155]
[1756496068635,38.14060066,203.91,203.83,0.72]
[1756496068841,32.07030033,203.84,203.83,0.72]
[1756496069858,26.0,203.84,203.83,19.22164316]
[1756496070048,6.07030033,203.86,203.84,13.59559401]
[1756496070241,0.71,203.92,203.85,0.72]
[1756496070242,26.0,203.91,203.85,0.72]
[1756496070561,6.07030033,203.88,203.86,4.90532718]
[1756496070756,6.07030033,203.88,203.87,14.26559401]
[1756496071664,26.0,203.88,203.87,14.26559401]
[1756496071967,32.07030033,203.88,203.8,14.265594]
[1756496072162,6.07030033,203.82,203.81,0.67]
[1756496072463,6.07030033,203.82,203.81,14.26559401]
[1756496072667,6.07030033,203.82,203.81,13.59559401]
[1756496072849,26.0,203.86,203.81,13.59559401]
[1756496073046,6.07030033,203.82,203.81,13.59559401]
[1756496074149,26.0,203.79,203.78,39.74]
[1756496074344,6.07030033,203.79,203.78,14.26559401]
[1756496075043,26.0,203.82,203.79,13.59559401]
[1756496075044,6.07030033,203.8,203.79,13.59559401]
[1756496075235,6.07030033,203.8,203.79,14.26559401]
[1756496075439,6.07030033,203.8,203.76,19.17310101]
[1756496075661,6.07030033,203.78,203.76,19.17310101]
[1756496075839,6.07030033,203.78,203.76,18.50310101]
[1756496076157,6.07030033,203.79,203.78,13.59559401]
[1756496076364,6.07030033,203.79,203.78,14.26559401]
[1756496077155,26.0,203.81,203.78,14.26559401]
[1756496077347,6.07030033,203.79,203.78,14.26559401]
[1756496077540,6.07030033,203.79,203.76,4.9076397]
[1756496077737,26.0,203.79,203.76,0.67]
[1756496077941,32.07030033,203.79,203.78,13.59559401]
[1756496078165,32.07030033,203.79,203.78,14.26559401]
[1756496079070,18.33127029,203.9,203.78,19.17284692]
[1756496079071,6.07030033,203.81,203.78,19.17284692]
[1756496079249,65.74,203.87,203.79,0.67]
[1756496079446,6.07030033,203.81,203.79,0.67]
[1756496079749,26.0,203.83,203.79,14.26559401]
[1756496079750,6.07030033,203.8,203.79,14.26559401]
[1756496080146,6.07030033,203.81,203.79,14.26559401]
[1756496080454,26.0,203.85,203.81,13.59559401]
[1756496080654,26.0,203.85,203.82,0.67]
[1756496080858,26.0,203.86,203.82,0.67]
[1756496081561,6.07030033,203.83,203.82,14.26559401]
[1756496081765,6.07030033,203.83,203.82,19.17188387]
[1756496081940,6.07030033,203.83,203.82,14.26559401]
[1756496082352,6.07030033,203.83,203.82,13.59559401]
[1756496083577,26.0,203.8,203.77,0.67]
[1756496083775,26.0,203.8,203.78,13.59559401]
[1756496084067,26.0,203.81,203.76,13.59559401]
[1756496084275,0.68,203.8,203.73,0.67]
[1756496084440,0.68,203.8,203.74,13.59559401]
[1756496084641,0.68,203.8,203.79,0.03]
[1756496085072,17.727372,203.8,203.79,0.03]
[1756496087171,17.727372,203.8,203.77,0.03]
[1756496087370,53.335594,203.84,203.69,0.67]
[1756496087371,26.0,203.75,203.7,19.66589434]
[1756496087560,26.0,203.81,203.71,19.66589434]
[1756496087761,26.0,203.77,203.71,19.66589434]
[1756496088066,32.07030033,203.77,203.73,13.59559401]
[1756496088382,6.07030033,203.75,203.74,14.26559401]
[1756496088573,6.07030033,203.75,203.74,13.59559401]
[1756496088764,32.07030033,203.75,203.74,13.59559401]
[1756496088963,32.07030033,203.75,203.72,13.59559401]
[1756496089157,32.07030033,203.73,203.72,0.67]
[1756496089779,26.0,203.71,203.7,14.26559401]
[1756496089982,32.07030033,203.71,203.7,14.26559401]
[1756496091598,32.07030033,203.71,203.68,6.96455284]
[1756496091599,12.14060066,203.71,203.68,6.96455284]
[1756496091889,6.07030033,203.69,203.68,6.96455284]
[1756496093284,6.07030033,203.69,203.68,20.56014685]
[1756496093463,0.68,203.77,203.69,13.59559401]
[1756496093673,6.07030033,203.7,203.69,13.59559401]
[1756496093870,5.45919793,203.85,203.69,13.59559401]
[1756496094086,0.68,203.79,203.69,13.59559401]
[1756496094267,6.07030033,203.71,203.7,14.26559401]
[1756496094683,6.07030033,203.72,203.7,14.26559401]
[1756496094885,6.07030033,203.72,203.71,0.67]
[1756496095076,6.07030033,203.72,203.71,5.57893917]
[1756496095696,6.07030033,203.73,203.72,13.59559401]
[1756496096502,6.07030033,203.73,203.72,14.26559401]
[1756496096872,6.07030033,203.76,203.72,14.26559401]
[1756496097106,6.07030033,203.74,203.73,14.26559401]
[1756496097271,6.07030033,203.74,203.73,5.57845727]
[1756496101388,0.66,203.84,203.74,13.59559401]
[1756496101584,6.07030033,203.76,203.75,54.03559401]
[1756496102974,6.07030033,203.77,203.75,54.03559401]
[1756496103170,6.07030033,203.77,203.76,5.60773458]
[1756496103996,6.07030033,203.77,203.76,18.50332859]
[1756496104499,6.07030033,203.77,203.75,13.59559401]
[1756496104672,26.0,203.74,203.73,18.53405128]
[1756496104874,32.07030033,203.74,203.73,18.53405128]
[1756496105891,26.0,203.77,203.73,18.53405128]
[1756496106079,6.07030033,203.74,203.73,19.23405128]
[1756496106280,6.07030033,203.74,203.73,18.53405128]
[1756496107297,26.0,203.77,203.73,18.53405128]
[1756496107602,6.07030033,203.74,203.73,0.03]
[1756496107902,6.07030033,203.74,203.73,18.53405128]
[1756496108275,6.07030033,203.74,203.73,13.62559401]
[1756496108696,6.07030033,203.74,203.73,18.53405128]
[1756496109605,6.07030033,203.74,203.73,13.62559401]
[1756496109808,6.07030033,203.74,203.73,0.03]
[1756496109809,6.73030033,203.74,203.73,0.03]
[1756496110309,6.73030033,203.74,203.68,6.96455284]
[1756496110310,17.70881701,203.74,203.68,6.96455284]
[1756496110490,6.07030033,203.69,203.68,6.96455284]
[1756496110692,6.73030033,203.69,203.68,6.96455284]
[1756496112083,11.6397215,203.69,203.68,6.96455284]
[1756496112299,26.0,203.66,203.58,0.7]
[1756496112513,6.73030033,203.69,203.57,39.72]
[1756496112514,6.07030033,203.59,203.57,39.72]
[1756496112720,6.07030033,203.58,203.57,39.72]
[1756496112924,6.07030033,203.58,203.57,40.42]